bitfinex-derivatives/quotes_BTCF0:USTF0_20241223
["timestamp","ask_amount","ask_price","bid_price","bid_amount"]
[1734978503351,0.003,93293.0,93292.0,0.147556]
[1734978503768,0.002,93293.0,93292.0,0.147556]
[1734978504366,0.12720777,93304.0,93303.0,0.05365]
[1734978505162,0.12261088,93312.0,93311.0,0.053645]
[1734978505360,0.3608,93327.0,93311.0,0.053645]
[1734978505361,0.09092206,93316.0,93315.0,0.053643]
[1734978505670,0.18714152,93325.0,93324.0,0.053638]
[1734978506662,0.19614152,93325.0,93324.0,0.053638]
[1734978506863,0.009,93325.0,93324.0,0.053638]
[1734978507273,0.009,93325.0,93321.0,0.3608]
[1734978507274,0.009,93325.0,93321.0,0.340438]
[1734978507969,0.015,93325.0,93324.0,0.054638]
[1734978508371,0.015,93325.0,93324.0,0.055638]
[1734978508672,0.009,93325.0,93324.0,0.054638]
[1734978508861,0.3608,93345.0,93322.0,0.0921]
[1734978509063,0.3608,93345.0,93343.0,0.053627]
[1734978510966,0.3638,93345.0,93343.0,0.053627]
[1734978511158,0.3638,93345.0,93327.0,0.053636]
[1734978511363,0.3638,93345.0,93343.0,0.053627]
[1734978511967,0.3638,93345.0,93344.0,0.053626]
[1734978512170,0.3708,93345.0,93343.0,0.054627]
[1734978512370,0.053626,93344.0,93320.0,0.09024244]
[1734978512565,0.3608,93326.0,93325.0,0.053637]
[1734978513167,0.3608,93326.0,93316.0,0.09024244]
[1734978513375,0.3608,93326.0,93325.0,0.053637]
[1734978513566,0.3608,93333.0,93332.0,0.053633]
[1734978513762,0.053628,93341.0,93338.0,0.05363]
[1734978513966,0.053628,93341.0,93337.0,0.05363]
[1734978514562,0.05363,93337.0,93325.0,0.001]
[1734978514774,0.3608,93333.0,93331.0,0.053634]
[1734978514970,0.3608,93333.0,93325.0,0.001]
[1734978515274,0.3608,93333.0,93320.0,0.09024244]
[1734978515275,0.3608,93333.0,93332.0,0.053633]
[1734978516071,0.3628,93333.0,93332.0,0.053633]
[1734978516867,0.3638,93333.0,93332.0,0.053633]
[1734978517477,0.3608,93333.0,93332.0,0.053633]
[1734978517673,0.3638,93333.0,93332.0,0.053633]
[1734978518070,0.3618,93333.0,93332.0,0.053633]
[1734978518271,0.3638,93333.0,93332.0,0.053633]
[1734978518771,0.3618,93333.0,93332.0,0.056633]
[1734978520976,0.3608,93333.0,93332.0,0.054633]
[1734978521177,0.3618,93333.0,93332.0,0.054633]
[1734978521377,0.3618,93333.0,93332.0,0.053633]
[1734978521675,0.3628,93333.0,93332.0,0.053633]
[1734978521877,0.3628,93333.0,93332.0,0.06248131]
[1734978523277,0.3618,93333.0,93332.0,0.06248131]
[1734978523476,0.3628,93333.0,93332.0,0.06248131]
[1734978524576,0.3618,93333.0,93332.0,0.06248131]
[1734978524777,0.3628,93333.0,93332.0,0.06248131]
[1734978526774,0.002,93333.0,93332.0,0.06248131]
[1734978526975,0.3608,93352.0,93351.0,0.053622]
[1734978527385,0.58457086,93364.0,93363.0,0.053616]
[1734978527576,0.58401085,93364.0,93363.0,0.053616]
[1734978528480,0.3608,93364.0,93363.0,0.053616]
[1734978528868,0.3618,93364.0,93363.0,0.057616]
[1734978529674,0.3618,93364.0,93363.0,0.060616]
[1734978530773,0.001,93364.0,93363.0,0.060616]
[1734978530978,0.3608,93396.0,93363.0,0.3678]
[1734978531178,0.46955277,93392.0,93378.0,0.053607]
[1734978531375,0.46895276,93392.0,93391.0,0.053599]
[1734978532384,0.21281,93392.0,93382.0,0.06984144]
[1734978532587,0.21881,93392.0,93382.0,0.06984144]
[1734978532777,0.003,93385.0,93383.0,0.053604]
[1734978533283,0.053606,93379.0,93378.0,0.001]
[1734978533583,0.414406,93379.0,93373.0,0.05361]
[1734978534174,0.05361,93374.0,93372.0,0.00160647]
[1734978534787,0.053616,93362.0,93361.0,0.00883982]
[1734978535085,0.053619,93358.0,93356.0,0.25717234]
[1734978535287,0.3608,93362.0,93340.0,0.54528244]
[1734978535288,0.0997,93361.0,93358.0,0.053618]
[1734978536081,0.0997,93361.0,93359.0,0.053618]
[1734978538082,0.36136001,93362.0,93350.0,0.67024244]
[1734978538279,0.3608,93362.0,93361.0,0.053617]
[1734978539389,0.3628,93362.0,93361.0,0.053617]
[1734978540090,0.3638,93362.0,93361.0,0.053617]
[1734978540493,0.003,93362.0,93361.0,0.053617]
[1734978540981,0.053617,93361.0,93352.0,0.3608]
[1734978541183,0.053617,93361.0,93356.0,0.053619]
[1734978541380,0.3608,93357.0,93356.0,0.053619]
[1734978541785,0.056616,93362.0,93356.0,0.053619]
[1734978541981,0.054616,93362.0,93350.0,0.67100244]
[1734978542177,0.054616,93362.0,93359.0,0.053618]
[1734978542394,0.053616,93362.0,93359.0,0.053618]
[1734978544903,0.36136001,93367.0,93355.0,0.05362]
[1734978545209,0.3608,93359.0,93355.0,0.05362]
[1734978545595,0.053618,93358.0,93350.0,0.67994349]
[1734978545909,0.053618,93358.0,93357.0,0.053619]
[1734978546605,0.36236001,93359.0,93357.0,0.053619]
[1734978546809,0.36236001,93359.0,93358.0,0.053618]
[1734978546810,0.3618,93359.0,93358.0,0.053618]
[1734978547010,0.3608,93359.0,93358.0,0.053618]
[1734978548097,0.3608,93359.0,93350.0,0.67922349]
[1734978548302,0.414418,93359.0,93350.0,0.67922349]
[1734978548802,0.415418,93359.0,93355.0,0.05362]
[1734978549309,0.415418,93359.0,93358.0,0.053618]
[1734978550503,0.418418,93359.0,93358.0,0.053618]
[1734978552016,0.417418,93359.0,93358.0,0.053618]
[1734978552307,0.003,93359.0,93358.0,0.053618]
[1734978553105,0.003,93359.0,93350.0,0.67922349]
[1734978553106,0.003,93359.0,93351.0,0.053622]
[1734978553306,0.003,93359.0,93358.0,0.053618]
[1734978553707,0.001,93359.0,93358.0,0.053618]
[1734978553902,0.001,93359.0,93350.0,0.67922349]
[1734978553903,0.19209956,93362.0,93360.0,0.053617]
[1734978554513,0.19209956,93362.0,93350.0,0.67922349]
[1734978554718,0.19209956,93362.0,93361.0,0.053617]
[1734978555314,0.053616,93363.0,93361.0,0.053617]
[1734978555614,0.053616,93363.0,93362.0,0.053616]
[1734978556406,0.003,93363.0,93350.0,0.67922349]
[1734978556612,0.003,93363.0,93322.0,0.3608]
[1734978556613,0.3608,93354.0,93340.0,0.0008]
[1734978556908,0.053629,93340.0,93337.0,0.05363]
[1734978557109,0.00060001,93341.0,93331.0,0.58]
[1734978557313,0.053622,93352.0,93339.0,0.01059899]
[1734978557512,0.053622,93352.0,93340.0,0.09024244]
[1734978558615,0.053622,93352.0,93340.0,0.09224244]
[1734978559213,0.053622,93352.0,93340.0,0.09024244]
[1734978559414,0.053622,93352.0,93348.0,0.053624]
[1734978560006,0.053623,93350.0,93348.0,0.053624]
[1734978560212,0.053625,93347.0,93343.0,0.053627]
[1734978560621,0.053625,93347.0,93340.0,0.09324244]
[1734978560818,0.053625,93347.0,93345.0,0.053626]
[1734978561416,0.36144,93354.0,93340.0,0.09324244]
[1734978561718,0.22384402,93367.0,93366.0,0.053614]
[1734978561915,0.22384402,93367.0,93353.0,0.3608]
[1734978562214,0.053618,93358.0,93353.0,0.3608]
[1734978562420,0.053618,93358.0,93355.0,0.05362]
[1734978563306,0.053618,93358.0,93356.0,0.053619]
[1734978563917,0.053618,93358.0,93353.0,0.3648]
[1734978564116,0.053618,93358.0,93357.0,0.053619]
[1734978564621,0.152016,93362.0,93354.0,0.053621]
[1734978564807,0.001,93358.0,93354.0,0.053621]
[1734978565012,0.001,93358.0,93357.0,0.053619]
[1734978565424,0.003,93358.0,93357.0,0.053619]
[1734978565919,0.002,93358.0,93357.0,0.053619]
[1734978566316,0.001,93358.0,93357.0,0.053619]
[1734978566518,0.003,93358.0,93357.0,0.053619]
[1734978566910,0.001,93358.0,93357.0,0.053619]
[1734978567112,0.003,93358.0,93357.0,0.053619]
[1734978569019,0.056618,93358.0,93357.0,0.053619]
[1734978571821,0.055618,93358.0,93357.0,0.053619]
[1734978572015,0.056618,93358.0,93357.0,0.053619]
[1734978572628,0.055618,93358.0,93357.0,0.053619]
[1734978572818,0.056618,93358.0,93357.0,0.053619]
[1734978573925,0.003,93358.0,93357.0,0.053619]
[1734978575424,0.056618,93358.0,93357.0,0.053619]
[1734978575925,0.055618,93358.0,93357.0,0.053619]
[1734978576113,0.056618,93358.0,93357.0,0.053619]
[1734978577422,0.002,93358.0,93357.0,0.053619]
[1734978577622,0.003,93358.0,93357.0,0.053619]
[1734978577924,0.003,93358.0,93357.0,0.633619]
[1734978579422,0.001,93358.0,93357.0,0.633619]
[1734978579728,0.003,93358.0,93357.0,0.633619]
[1734978580426,0.056618,93358.0,93357.0,0.053619]
[1734978583524,0.055618,93358.0,93357.0,0.053619]
[1734978583724,0.056618,93358.0,93357.0,0.053619]
[1734978584126,0.05362,93355.0,93353.0,0.00898523]
[1734978584432,0.05362,93355.0,93340.0,0.09024244]
[1734978584433,0.05362,93355.0,93354.0,0.053621]
[1734978585627,0.05362,93355.0,93337.0,0.55240871]
[1734978585628,0.3608,93355.0,93339.0,0.00160711]
[1734978585933,0.053629,93340.0,93339.0,0.00160711]
[1734978587134,0.053629,93340.0,93339.0,0.00660711]
[1734978588028,0.053629,93340.0,93339.0,0.06023611]
[1734978588236,0.053629,93340.0,93339.0,0.06223611]
[1734978588836,0.053629,93340.0,93339.0,0.07162262]
[1734978589038,0.054629,93340.0,93339.0,0.06962262]
[1734978589230,0.056629,93340.0,93339.0,0.06462262]
[1734978590232,0.056629,93340.0,93339.0,0.01099362]
[1734978590441,0.056629,93340.0,93326.0,0.19204871]
[1734978590442,0.053636,93327.0,93326.0,0.19204871]
[1734978590645,0.053629,93340.0,93339.0,0.053629]
[1734978590646,0.003,93340.0,93339.0,0.053629]
[1734978591239,0.002,93340.0,93339.0,0.053629]
[1734978591436,0.003,93340.0,93339.0,0.633629]
[1734978591637,0.056629,93340.0,93339.0,0.633629]
[1734978592033,0.053631,93336.0,93333.0,0.053632]
[1734978592237,0.053632,93335.0,93333.0,0.053632]
[1734978592639,0.053632,93335.0,93327.0,0.0932]
[1734978592640,0.053632,93335.0,93334.0,0.633632]
[1734978594337,0.001,93335.0,93334.0,0.633632]
[1734978595540,0.002,93335.0,93334.0,0.633632]
[1734978596544,0.002,93335.0,93334.0,0.053632]
[1734978597039,0.002,93335.0,93334.0,0.633632]
[1734978597638,0.055632,93335.0,93334.0,0.58]
[1734978597844,0.053635,93329.0,93328.0,0.053636]
[1734978598044,0.414435,93329.0,93328.0,0.053636]
[1734978598248,0.414435,93329.0,93328.0,0.633636]
[1734978599046,0.414435,93329.0,93328.0,0.635636]
[1734978599350,0.414435,93329.0,93328.0,0.055636]
[1734978599743,0.414435,93329.0,93328.0,0.002]
[1734978599951,0.414435,93329.0,93328.0,0.003]
[1734978601542,0.4679484,93329.0,93300.0,0.09024244]
[1734978601846,0.053647,93309.0,93308.0,0.053646]
[1734978602052,0.36140001,93311.0,93310.0,0.053646]
[1734978602242,0.3608,93311.0,93310.0,0.053646]
[1734978602757,0.053648,93307.0,93305.0,0.053649]
[1734978603145,0.001,93309.0,93308.0,0.009]
[1734978603659,0.41504501,93311.0,93307.0,0.053647]
[1734978603951,0.414445,93311.0,93310.0,0.001]
[1734978604654,0.3608,93311.0,93310.0,0.054646]
[1734978605145,0.19161976,93318.0,93310.0,0.634646]
[1734978605357,0.55297977,93319.0,93318.0,0.053641]
[1734978605553,0.55241976,93319.0,93318.0,0.053641]
[1734978605738,0.19161976,93319.0,93318.0,0.053641]
[1734978606159,0.19161976,93319.0,93318.0,0.633641]
[1734978606358,0.17703955,93319.0,93318.0,0.633641]
[1734978606558,0.18003955,93319.0,93318.0,0.633641]
[1734978606755,0.003,93319.0,93318.0,0.633641]
[1734978606962,0.15956037,93323.0,93318.0,0.64307117]
[1734978607162,0.15956037,93323.0,93322.0,0.053639]
[1734978607353,0.22355639,93347.0,93337.0,0.05363]
[1734978607558,0.22355639,93347.0,93337.0,0.14387244]
[1734978608257,0.36136001,93348.0,93347.0,0.053625]
[1734978608469,0.3608,93348.0,93347.0,0.053625]
[1734978609359,0.3668,93348.0,93347.0,0.054625]
[1734978610269,0.3698,93348.0,93347.0,0.054625]
[1734978611470,0.3698,93348.0,93347.0,0.001]
[1734978611777,0.05363,93338.0,93323.0,0.053638]
[1734978612068,0.3608,93329.0,93328.0,0.053636]
[1734978613165,0.3608,93329.0,93328.0,0.054636]
[1734978614367,0.414435,93329.0,93328.0,0.001]
[1734978615359,0.6608,93329.0,93318.0,0.00160714]
[1734978615667,0.053642,93318.0,93302.0,0.05365]
[1734978615971,0.053647,93308.0,93290.0,0.09024244]
[1734978616274,0.0943,93307.0,93305.0,0.053649]
[1734978616863,0.0943,93307.0,93306.0,0.053648]
[1734978619666,0.36136001,93310.0,93309.0,0.053647]
[1734978619868,0.3608,93310.0,93309.0,0.053647]
[1734978620463,0.3608,93310.0,93309.0,0.633647]
[1734978620870,0.3618,93310.0,93309.0,0.633647]
[1734978621266,0.001,93310.0,93309.0,0.633647]
[1734978621971,0.002,93310.0,93309.0,0.633647]
[1734978622462,0.001,93310.0,93309.0,0.633647]
[1734978622664,0.001,93310.0,93309.0,0.635647]
[1734978623072,0.1882,93323.0,93317.0,0.053642]
[1734978623375,0.3608,93320.0,93317.0,0.053642]
[1734978623670,0.053641,93319.0,93317.0,0.053642]
[1734978623870,0.053646,93310.0,93309.0,0.00488]
[1734978624064,0.414446,93310.0,93309.0,0.004]
[1734978624262,0.053654,93297.0,93292.0,0.42399276]
[1734978624466,0.053654,93297.0,93293.0,0.053655]
[1734978625259,0.053654,93297.0,93293.0,0.633655]
[1734978625467,0.053656,93293.0,93292.0,0.007]
[1734978625975,0.05366,93286.0,93285.0,0.00928967]
[1734978626274,0.41446,93286.0,93272.0,0.36052]
[1734978626475,0.41446,93286.0,93281.0,0.053663]
[1734978626672,0.3608,93286.0,93284.0,0.053661]
[1734978627377,0.3608,93286.0,93285.0,0.00217752]
[1734978628470,0.3608,93286.0,93285.0,0.00351259]
[1734978628773,0.3618,93286.0,93285.0,0.00351259]
[1734978629374,0.3638,93286.0,93285.0,0.00351259]
[1734978630770,0.3638,93286.0,93285.0,0.58351259]
[1734978630971,0.41746,93286.0,93285.0,0.59311325]
[1734978632579,0.3618,93286.0,93285.0,0.64677325]
[1734978632775,0.3648,93286.0,93285.0,0.64677325]
[1734978633474,0.3658,93286.0,93285.0,0.64677325]
[1734978635074,0.005,93286.0,93285.0,0.64677325]
[1734978635273,0.005,93286.0,93285.0,0.59311325]
[1734978635478,0.05866,93286.0,93285.0,0.00351259]
[1734978635687,0.05366,93286.0,93285.0,0.00551259]
[1734978635880,0.05366,93286.0,93285.0,0.00651259]
[1734978636487,0.00064,93288.0,93287.0,0.053659]
[1734978636679,0.00064,93288.0,93285.0,0.00551259]
[1734978636680,0.053656,93293.0,93289.0,0.053658]
[1734978637085,0.053656,93293.0,93291.0,0.00498121]
[1734978637384,0.053656,93292.0,93291.0,0.00498121]
[1734978638780,0.056656,93292.0,93291.0,0.00498121]
[1734978638975,0.057656,93292.0,93291.0,0.00498121]
[1734978639578,0.053661,93284.0,93283.0,0.00160794]
[1734978639784,0.775261,93284.0,93283.0,0.00160794]
[1734978641385,0.053667,93275.0,93274.0,0.053667]
[1734978641584,0.414467,93275.0,93274.0,0.06352175]
[1734978641886,0.3608,93276.0,93275.0,0.053666]
[1734978642478,0.36636001,93284.0,93283.0,0.053662]
[1734978642673,0.3658,93284.0,93283.0,0.053662]
[1734978642879,0.003,93284.0,93283.0,0.05513062]
[1734978643084,0.003,93284.0,93283.0,0.63513062]
[1734978643988,0.4516,93305.0,93293.0,0.053655]
[1734978644293,0.053655,93295.0,93293.0,0.053655]
[1734978644985,0.053655,93295.0,93294.0,0.00146862]
[1734978645190,0.36136001,93297.0,93296.0,0.053654]
[1734978645384,0.3608,93297.0,93296.0,0.053654]
[1734978645783,0.55651619,93305.0,93296.0,0.00146862]
[1734978645985,0.55195618,93305.0,93304.0,0.053649]
[1734978646179,0.19115618,93305.0,93304.0,0.053649]
[1734978646381,0.45296001,93317.0,93304.0,0.053649]
[1734978646382,0.19115618,93310.0,93309.0,0.053647]
[1734978646986,0.19115618,93310.0,93309.0,0.05511562]
[1734978647387,0.19115618,93310.0,93305.0,0.16891562]
[1734978647799,0.20015618,93310.0,93305.0,0.16891562]
[1734978648093,0.20015618,93310.0,93309.0,0.053647]
[1734978648297,0.009,93310.0,93309.0,0.053647]
[1734978648498,0.014,93310.0,93309.0,0.053647]
[1734978648790,0.005,93310.0,93309.0,0.053647]
[1734978648995,0.014,93310.0,93309.0,0.053647]
[1734978652400,0.014,93310.0,93305.0,0.14856262]
[1734978652597,0.014,93310.0,93309.0,0.053647]
[1734978653497,0.009,93310.0,93309.0,0.053647]
[1734978653702,0.013,93310.0,93305.0,0.14856262]
[1734978653999,0.013,93310.0,93309.0,0.053647]
[1734978654297,0.009,93310.0,93309.0,0.053647]
[1734978654498,0.014,93310.0,93309.0,0.053647]
[1734978655398,0.014,93310.0,93305.0,0.1584182]
[1734978655399,0.014,93310.0,93305.0,0.00985558]
[1734978655604,0.053648,93306.0,93297.0,0.053653]
[1734978655794,0.1859,93305.0,93298.0,0.053653]
[1734978656400,0.1859,93305.0,93300.0,0.053652]
[1734978656995,0.1859,93305.0,93303.0,0.05365]
[1734978657206,0.36136001,93307.0,93306.0,0.053648]
[1734978657412,0.3608,93307.0,93306.0,0.053648]
[1734978657613,0.19115618,93313.0,93312.0,0.053645]
[1734978658306,0.19115618,93313.0,93298.0,0.58]
[1734978658611,0.3608,93303.0,93300.0,0.053651]
[1734978658911,0.3608,93303.0,93301.0,0.053651]
[1734978659098,0.3608,93303.0,93298.0,0.00088]
[1734978659301,0.3608,93303.0,93291.0,0.4668407]
[1734978659500,0.3608,93303.0,93298.0,0.053653]
[1734978660302,0.3608,93303.0,93300.0,0.053651]
[1734978661207,0.3608,93303.0,93298.0,0.001]
[1734978661406,0.053652,93300.0,93298.0,0.001]
[1734978661611,0.05366,93286.0,93275.0,0.053666]
[1734978661808,0.41446,93286.0,93283.0,0.00956808]
[1734978662316,0.3608,93286.0,93284.0,0.05366]
[1734978662514,0.3608,93286.0,93284.0,0.14296]
[1734978662718,0.053654,93297.0,93284.0,0.0893]
[1734978663017,0.36136001,93303.0,93302.0,0.053651]
[1734978663216,0.3608,93303.0,93302.0,0.053651]
[1734978664419,0.3628,93303.0,93302.0,0.053651]
[1734978665220,0.3638,93303.0,93302.0,0.053651]
[1734978665525,0.3638,93303.0,93302.0,0.633651]
[1734978665918,0.3618,93303.0,93302.0,0.633651]
[1734978666123,0.3638,93303.0,93302.0,0.633651]
[1734978667021,0.001,93303.0,93302.0,0.633651]
[1734978667317,0.3608,93336.0,93334.0,0.053632]
[1734978667910,0.22355639,93337.0,93336.0,0.053631]
[1734978668521,0.053625,93346.0,93328.0,0.3608]
[1734978668725,0.55006001,93353.0,93336.0,0.09024244]
[1734978669024,0.3608,93372.0,93352.0,0.3608]
[1734978669223,0.3608,93372.0,93369.0,0.053612]
[1734978669413,0.25614276,93376.0,93372.0,0.05361]
[1734978669615,0.25614276,93376.0,93374.0,0.053609]
[1734978670126,0.3608,93375.0,93373.0,0.58128]
[1734978670518,0.3608,93375.0,93373.0,0.58]
[1734978670823,0.009,93376.0,93374.0,0.053609]
[1734978671131,0.053601,93389.0,93371.0,0.3608]
[1734978671330,0.053601,93389.0,93380.0,0.053606]
[1734978671827,0.053598,93394.0,93375.0,0.09024244]
[1734978672027,0.3608,93396.0,93382.0,0.09024244]
[1734978672225,0.3608,93396.0,93390.0,0.0536]
[1734978672526,0.3608,93396.0,93382.0,0.43032244]
[1734978673031,0.3608,93396.0,93387.0,0.053602]
[1734978673230,0.002,93389.0,93387.0,0.053602]
[1734978673429,0.006,93389.0,93387.0,0.053602]
[1734978673827,0.006,93389.0,93382.0,0.43990548]
[1734978674033,0.3608,93388.0,93382.0,0.43990548]
[1734978674234,0.053602,93387.0,93382.0,0.43990548]
[1734978674420,0.3608,93388.0,93382.0,0.43990548]
[1734978674622,0.3608,93388.0,93387.0,0.005]
[1734978674825,0.053604,93383.0,93382.0,0.36048]
[1734978675023,0.414404,93383.0,93382.0,0.21278]
[1734978675825,0.414404,93383.0,93360.0,0.09024244]
[1734978676026,0.414415,93364.0,93360.0,0.09024244]
[1734978676225,0.414415,93364.0,93354.0,0.09024244]
[1734978676530,0.414415,93364.0,93362.0,0.053616]
[1734978677626,0.420415,93364.0,93362.0,0.053616]
[1734978678134,0.422415,93364.0,93362.0,0.053616]
[1734978678735,0.420415,93364.0,93362.0,0.053616]
[1734978679035,0.422415,93364.0,93362.0,0.053616]
[1734978679537,0.3688,93364.0,93362.0,0.053616]
[1734978680136,0.3688,93364.0,93362.0,0.633616]
[1734978680339,0.3608,93373.0,93372.0,0.05361]
[1734978681327,0.36136001,93383.0,93372.0,0.05361]
[1734978681532,0.053598,93394.0,93373.0,0.09024244]
[1734978681834,0.36136001,93396.0,93389.0,0.0536]
[1734978682039,0.36136001,93396.0,93390.0,0.0536]
[1734978682438,0.36136001,93396.0,93391.0,0.053599]
[1734978682439,0.00056001,93396.0,93391.0,0.053599]
[1734978682741,0.10679494,93392.0,93391.0,0.053599]
[1734978683140,0.10679494,93392.0,93391.0,0.633599]
[1734978683335,0.08535494,93392.0,93391.0,0.633599]
[1734978683528,0.094,93400.0,93399.0,0.053595]
[1734978683739,0.36136001,93416.0,93415.0,0.053586]
[1734978684042,0.3608,93416.0,93415.0,0.053586]
[1734978684742,0.3608,93416.0,93411.0,0.053588]
[1734978684941,0.3608,93416.0,93415.0,0.004]
[1734978685146,0.3608,93416.0,93415.0,0.584]
[1734978685542,0.3608,93416.0,93415.0,0.004]
[1734978685734,0.3608,93416.0,93415.0,0.006]
[1734978685942,0.053595,93399.0,93381.0,0.3608]
[1734978686238,0.053605,93382.0,93380.0,0.00160614]
[1734978686437,0.33936,93381.0,93380.0,0.00160614]
[1734978687739,0.34136,93381.0,93380.0,0.00160614]
[1734978688838,0.34136,93381.0,93380.0,0.05521214]
[1734978689032,0.34236,93381.0,93380.0,0.05521214]
[1734978689435,0.003,93381.0,93380.0,0.05521214]
[1734978689839,0.004,93381.0,93380.0,0.05521214]
[1734978690445,0.415041,93388.0,93383.0,0.053604]
[1734978690647,0.414401,93388.0,93385.0,0.053603]
[1734978691242,0.3608,93388.0,93386.0,0.053602]
[1734978692037,0.002,93388.0,93384.0,0.053603]
[1734978692240,0.002,93388.0,93380.0,0.00160614]
[1734978692439,0.002,93388.0,93381.0,0.58]
[1734978693043,0.002,93388.0,93387.0,0.053602]
[1734978693443,0.007,93388.0,93387.0,0.053602]
[1734978694139,0.4534,93415.0,93396.0,0.13521875]
[1734978694438,0.4534,93415.0,93408.0,0.053589]
[1734978694643,0.36136001,93424.0,93422.0,0.053581]
[1734978694943,0.414381,93424.0,93417.0,0.053584]
[1734978695451,0.414381,93424.0,93418.0,0.053584]
[1734978695647,0.414381,93424.0,93414.0,0.71521875]
[1734978695648,0.053584,93418.0,93414.0,0.58128]
[1734978695855,0.3608,93416.0,93414.0,0.633586]
[1734978696038,0.3608,93416.0,93396.0,0.285]
[1734978696245,0.3608,93407.0,93405.0,0.053591]
[1734978697545,0.3738,93407.0,93405.0,0.054591]
[1734978697753,0.013,93407.0,93405.0,0.054591]
[1734978698143,0.009,93407.0,93405.0,0.054591]
[1734978698338,0.013,93407.0,93405.0,0.054591]
[1734978699453,0.004,93407.0,93405.0,0.053591]
[1734978699646,0.013,93407.0,93405.0,0.001]
[1734978700054,0.013,93407.0,93396.0,0.00968358]
[1734978700055,0.004,93407.0,93403.0,0.24564171]
[1734978700249,0.004,93407.0,93405.0,0.001]
[1734978700250,0.013,93407.0,93405.0,0.001]
[1734978700951,0.012,93407.0,93405.0,0.001]
[1734978701143,0.012,93407.0,93405.0,0.053591]
[1734978701752,0.053592,93404.0,93403.0,0.001]
[1734978702743,0.053592,93404.0,93402.0,0.053593]
[1734978703144,0.053592,93404.0,93394.0,0.01000768]
[1734978703145,0.053596,93398.0,93396.0,0.053596]
[1734978703339,0.3608,93397.0,93396.0,0.053596]
[1734978704547,0.006,93397.0,93396.0,0.001]
[1734978704748,0.3608,93415.0,93396.0,0.001]
[1734978704749,0.3608,93415.0,93396.0,0.01094905]
[1734978705054,0.3608,93415.0,93414.0,0.053586]
[1734978705349,0.36144,93421.0,93413.0,0.053587]
[1734978705548,0.36144,93421.0,93396.0,0.001]
[1734978705549,0.05359,93407.0,93402.0,0.053593]
[1734978705748,0.3608,93409.0,93396.0,0.001]
[1734978705947,0.053596,93397.0,93396.0,0.001]
[1734978706148,0.055596,93397.0,93396.0,0.001]
[1734978706849,0.053596,93397.0,93396.0,0.001]
[1734978707849,0.055596,93397.0,93396.0,0.001]
[1734978708054,0.055596,93397.0,93387.0,0.633602]
[1734978708353,0.3608,93395.0,93387.0,0.77879737]
[1734978708540,0.002,93397.0,93396.0,0.053597]
[1734978709147,0.003,93397.0,93387.0,0.72519537]
[1734978709453,0.003,93397.0,93396.0,0.053597]
[1734978709654,0.3638,93397.0,93396.0,0.053597]
[1734978709949,0.423396,93397.0,93396.0,0.001]
[1734978710153,0.3698,93397.0,93396.0,0.054597]
[1734978710360,0.009,93397.0,93396.0,0.054597]
[1734978710655,0.3698,93397.0,93396.0,0.054597]
[1734978711157,0.009,93397.0,93396.0,0.054597]
[1734978711760,0.003,93397.0,93396.0,0.053597]
[1734978712055,0.004,93397.0,93396.0,0.053597]
[1734978712855,0.003,93397.0,93396.0,0.053597]
[1734978713550,0.005,93397.0,93396.0,0.053597]
[1734978713749,0.007,93397.0,93396.0,0.053597]
[1734978716058,0.053597,93395.0,93391.0,0.053599]
[1734978716260,0.053597,93395.0,93387.0,0.00997662]
[1734978716563,0.053599,93392.0,93387.0,0.053602]
[1734978716751,0.053599,93392.0,93388.0,0.053601]
[1734978716954,0.053599,93392.0,93383.0,0.58124]
[1734978716955,0.053598,93394.0,93389.0,0.0536]
[1734978717264,0.3608,93390.0,93383.0,0.58124]
[1734978717560,0.3608,93390.0,93383.0,0.58]
[1734978717864,0.3608,93390.0,93387.0,0.053601]
[1734978718053,0.3608,93390.0,93388.0,0.053601]
[1734978718451,0.3608,93390.0,93383.0,0.5812]
[1734978718657,0.3608,93390.0,93382.0,0.0099645]
[1734978718863,0.053604,93383.0,93380.0,0.00160614]
[1734978719163,0.053605,93382.0,93381.0,0.633605]
[1734978719566,0.053603,93385.0,93383.0,0.001]
[1734978719964,0.24597026,93385.0,93383.0,0.001]
[1734978720161,0.24597026,93385.0,93380.0,0.00460614]
[1734978720467,0.19236726,93385.0,93384.0,0.053603]
[1734978721164,0.36136001,93390.0,93384.0,0.633603]
[1734978721469,0.3608,93390.0,93389.0,0.053601]
[1734978722461,0.3618,93390.0,93389.0,0.053601]
[1734978723566,0.3638,93390.0,93389.0,0.053601]
[1734978723964,0.3618,93390.0,93389.0,0.053601]
[1734978724160,0.3638,93390.0,93389.0,0.053601]
[1734978724564,0.3618,93390.0,93389.0,0.053601]
[1734978724780,0.003,93390.0,93389.0,0.053601]
[1734978725358,0.002,93390.0,93389.0,0.053601]
[1734978725570,0.003,93390.0,93384.0,0.59087482]
[1734978725774,0.003,93390.0,93374.0,0.0012]
[1734978725775,0.053605,93381.0,93374.0,0.0012]
[1734978725975,0.053609,93374.0,93373.0,0.19204871]
[1734978726568,0.053609,93374.0,93369.0,0.00991316]
[1734978726569,0.053612,93370.0,93369.0,0.00991316]
[1734978726760,0.053617,93361.0,93360.0,0.053617]
[1734978726959,0.3608,93363.0,93362.0,0.053616]
[1734978727164,0.3608,93363.0,93358.0,0.5812]
[1734978727165,0.053613,93367.0,93366.0,0.053614]
[1734978727466,0.053617,93361.0,93360.0,0.053617]
[1734978728365,0.3608,93362.0,93358.0,0.59086103]
[1734978728566,0.3608,93362.0,93361.0,0.053617]